[Event "Titled Tuesday Blitz May 16 Early 2023"]
[White "Nguyen, Ngoc Truong Son"]
[Black "Jakubowski, Krzysztof"]
[WhiteFideId "12401110"]
[BlackFideId "1112848"]
[WhiteElo "2556"]
[BlackElo "2359"]
[Result "1-0"]
[Round "02"]
[TimeControl "180+2"]
[Date "2023.05.16"]
[WhiteClock "0:00:06"]
[BlackClock "0:00:00"]

1. d4 {[%clk 0:02:56]}  Nf6 {[%clk 0:02:59]} 2. c4 {[%clk 0:02:53]}  e6 {[%clk 0:02:58]} 3. Nf3 {[%clk 0:02:52]}  b6 {[%clk 0:02:57]} 4. g3 {[%clk 0:02:50]}  Ba6 {[%clk 0:02:56]} 5. Qc2 {[%clk 0:02:42]}  c5 {[%clk 0:02:46]} 6. d5 {[%clk 0:02:37]}  exd5 {[%clk 0:02:36]} 7. cxd5 {[%clk 0:02:38]}  Bb7 {[%clk 0:02:36]} 8. e4 {[%clk 0:02:25]}  Qe7 {[%clk 0:02:31]} 9. Bg2 {[%clk 0:01:48]}  Qxe4+ {[%clk 0:02:25]} 10. Qxe4+ {[%clk 0:01:48]}  Nxe4 {[%clk 0:02:26]} 11. O-O {[%clk 0:01:46]}  Bxd5 {[%clk 0:02:01]} 12. Re1 {[%clk 0:01:42]}  Be7 {[%clk 0:01:42]} 13. Nh4 {[%clk 0:01:38]}  Nf6 {[%clk 0:01:26]} 14. Nf5 {[%clk 0:01:27]}  Nc6 {[%clk 0:01:24]} 15. Nxg7+ {[%clk 0:01:22]}  Kd8 {[%clk 0:01:22]} 16. Nf5 {[%clk 0:01:16]}  Bxg2 {[%clk 0:01:12]} 17. Kxg2 {[%clk 0:01:17]}  Rg8 {[%clk 0:00:41]} 18. Nc3 {[%clk 0:01:15]}  Bf8 {[%clk 0:00:36]} 19. h4 {[%clk 0:01:08]}  Ne8 {[%clk 0:00:34]} 20. Bf4 {[%clk 0:01:05]}  Rg6 {[%clk 0:00:31]} 21. Red1 {[%clk 0:00:29]}  Ng7 {[%clk 0:00:21]} 22. Ne3 {[%clk 0:00:12]}  Ne6 {[%clk 0:00:18]} 23. Ned5 {[%clk 0:00:11]}  h5 {[%clk 0:00:13]} 24. Rd2 {[%clk 0:00:10]}  Bg7 {[%clk 0:00:13]} 25. Rad1 {[%clk 0:00:10]}  Bd4 {[%clk 0:00:12]} 26. Nb5 {[%clk 0:00:08]}  a6 {[%clk 0:00:09]} 27. Nbc7 {[%clk 0:00:07]}  Ra7 {[%clk 0:00:09]} 28. Nxe6+ {[%clk 0:00:07]}  fxe6 {[%clk 0:00:08]} 29. Nxb6 {[%clk 0:00:08]}  Rb7 {[%clk 0:00:07]} 30. Nc4 {[%clk 0:00:07]}  d5 {[%clk 0:00:07]} 31. Ne3 {[%clk 0:00:04]}  Rf7 {[%clk 0:00:07]} 32. Bg5+ {[%clk 0:00:04]}  Kc7 {[%clk 0:00:06]} 33. b3 {[%clk 0:00:04]}  Kb6 {[%clk 0:00:06]} 34. Nc2 {[%clk 0:00:04]}  e5 {[%clk 0:00:06]} 35. Ne3 {[%clk 0:00:04]}  Rd7 {[%clk 0:00:05]} 36. Nf5 {[%clk 0:00:04]}  e4 {[%clk 0:00:04]} 37. Be3 {[%clk 0:00:03]}  Re6 {[%clk 0:00:03]} 38. Nxd4 {[%clk 0:00:03]}  cxd4 {[%clk 0:00:03]} 39. Bxd4+ {[%clk 0:00:04]}  Nxd4 {[%clk 0:00:03]} 40. Rxd4 {[%clk 0:00:05]}  Kc5 {[%clk 0:00:03]} 41. b4+ {[%clk 0:00:05]}  Kb5 {[%clk 0:00:03]} 42. Rxd5+ {[%clk 0:00:05]}  Rxd5 {[%clk 0:00:03]} 43. Rxd5+ {[%clk 0:00:04]}  Kxb4 {[%clk 0:00:04]} 44. Rxh5 {[%clk 0:00:05]}  a5 {[%clk 0:00:04]} 45. Rf5 {[%clk 0:00:05]}  a4 {[%clk 0:00:04]} 46. h5 {[%clk 0:00:05]}  Ka3 {[%clk 0:00:04]} 47. g4 {[%clk 0:00:06]}  Ra6 {[%clk 0:00:04]} 48. Rb5 {[%clk 0:00:05]}  Kxa2 {[%clk 0:00:03]} 49. g5 {[%clk 0:00:05]}  a3 {[%clk 0:00:03]} 50. g6 {[%clk 0:00:05]}  e3 {[%clk 0:00:03]} 51. fxe3 {[%clk 0:00:05]}  Ka1 {[%clk 0:00:04]} 52. Kf3 {[%clk 0:00:05]}  a2 {[%clk 0:00:03]} 53. Rd5 {[%clk 0:00:04]}  Kb2 {[%clk 0:00:03]} 54. Rd2+ {[%clk 0:00:04]}  Kc3 {[%clk 0:00:03]} 55. Rxa2 {[%clk 0:00:05]}  Rxa2 {[%clk 0:00:00]} 56. g7 {[%clk 0:00:06]} 1-0


[Site "https://www.chess.com"]

[Event "Titled Tuesday Blitz May 16 Early 2023"]
[White "Keymer, Vincent"]
[Black "wqws"]
[WhiteFideId "12940690"]
[WhiteElo "2669"]
[BlackElo "2590"]
[Result "1-0"]
[Round "02"]
[TimeControl "180+2"]
[Date "2023.05.16"]
[WhiteClock "0:00:04"]
[BlackClock "0:00:08"]

1. a3 {[%clk 0:03:00]}  d5 {[%clk 0:02:55]} 2. Nf3 {[%clk 0:02:59]}  Nf6 {[%clk 0:02:55]} 3. e3 {[%clk 0:02:56]}  g6 {[%clk 0:02:46]} 4. b4 {[%clk 0:02:54]}  Bg7 {[%clk 0:02:47]} 5. Bb2 {[%clk 0:02:55]}  O-O {[%clk 0:02:47]} 6. h3 {[%clk 0:02:54]}  a5 {[%clk 0:02:46]} 7. b5 {[%clk 0:02:50]}  c5 {[%clk 0:02:45]} 8. d3 {[%clk 0:02:37]}  b6 {[%clk 0:02:40]} 9. Be2 {[%clk 0:02:30]}  Bb7 {[%clk 0:02:38]} 10. O-O {[%clk 0:02:30]}  Nbd7 {[%clk 0:02:38]} 11. Nbd2 {[%clk 0:02:26]}  Re8 {[%clk 0:02:36]} 12. c4 {[%clk 0:02:26]}  e5 {[%clk 0:02:28]} 13. cxd5 {[%clk 0:02:24]}  Nxd5 {[%clk 0:02:25]} 14. Qc2 {[%clk 0:02:17]}  Rc8 {[%clk 0:02:20]} 15. Nc4 {[%clk 0:02:15]}  Qe7 {[%clk 0:02:16]} 16. Rfe1 {[%clk 0:02:13]}  Kh8 {[%clk 0:02:15]} 17. Nfd2 {[%clk 0:02:12]}  f5 {[%clk 0:02:14]} 18. Bf3 {[%clk 0:02:07]}  Ba8 {[%clk 0:02:01]} 19. e4 {[%clk 0:01:54]}  Nf4 {[%clk 0:01:59]} 20. exf5 {[%clk 0:01:55]}  gxf5 {[%clk 0:01:43]} 21. Bxa8 {[%clk 0:01:50]}  Rxa8 {[%clk 0:01:44]} 22. Nf3 {[%clk 0:01:50]}  Ng6 {[%clk 0:00:58]} 23. Re3 {[%clk 0:01:44]}  f4 {[%clk 0:00:39]} 24. Re2 {[%clk 0:01:41]}  Nh4 {[%clk 0:00:29]} 25. Ncd2 {[%clk 0:01:27]}  Nxf3+ {[%clk 0:00:25]} 26. Nxf3 {[%clk 0:01:27]}  Bf6 {[%clk 0:00:25]} 27. Qc4 {[%clk 0:00:56]}  Qg7 {[%clk 0:00:24]} 28. Kh2 {[%clk 0:00:50]}  Rg8 {[%clk 0:00:21]} 29. Rg1 {[%clk 0:00:51]}  Rae8 {[%clk 0:00:20]} 30. Qd5 {[%clk 0:00:48]}  Re7 {[%clk 0:00:20]} 31. Qc6 {[%clk 0:00:38]}  Rge8 {[%clk 0:00:20]} 32. Nd2 {[%clk 0:00:32]}  Re6 {[%clk 0:00:18]} 33. Qf3 {[%clk 0:00:32]}  R6e7 {[%clk 0:00:10]} 34. Rge1 {[%clk 0:00:32]}  Qg6 {[%clk 0:00:08]} 35. a4 {[%clk 0:00:25]}  Bg7 {[%clk 0:00:08]} 36. Nc4 {[%clk 0:00:26]}  Qf5 {[%clk 0:00:08]} 37. Bc1 {[%clk 0:00:24]}  Qf6 {[%clk 0:00:08]} 38. Re4 {[%clk 0:00:20]}  Qg6 {[%clk 0:00:08]} 39. Bb2 {[%clk 0:00:16]}  h6 {[%clk 0:00:07]} 40. d4 {[%clk 0:00:13]}  cxd4 {[%clk 0:00:06]} 41. Bxd4 {[%clk 0:00:14]}  Kh7 {[%clk 0:00:07]} 42. Bb2 {[%clk 0:00:14]}  Bf6 {[%clk 0:00:07]} 43. R4e2 {[%clk 0:00:14]}  Qf5 {[%clk 0:00:05]} 44. Ba3 {[%clk 0:00:14]}  Re6 {[%clk 0:00:04]} 45. Nd6 {[%clk 0:00:12]}  Rxd6 {[%clk 0:00:04]} 46. Bxd6 {[%clk 0:00:13]}  Rg8 {[%clk 0:00:04]} 47. Qe4 {[%clk 0:00:13]}  Qxe4 {[%clk 0:00:04]} 48. Rxe4 {[%clk 0:00:14]}  Kg6 {[%clk 0:00:05]} 49. Rd1 {[%clk 0:00:13]}  Kf5 {[%clk 0:00:06]} 50. f3 {[%clk 0:00:13]}  Ke6 {[%clk 0:00:05]} 51. Bc7 {[%clk 0:00:12]}  Nc5 {[%clk 0:00:05]} 52. Re2 {[%clk 0:00:13]}  Nxa4 {[%clk 0:00:05]} 53. Rd6+ {[%clk 0:00:12]}  Kf5 {[%clk 0:00:06]} 54. Rc6 {[%clk 0:00:11]}  Nc5 {[%clk 0:00:05]} 55. Bxb6 {[%clk 0:00:10]}  Nb3 {[%clk 0:00:05]} 56. Ra2 {[%clk 0:00:08]}  Bh4 {[%clk 0:00:05]} 57. Bf2 {[%clk 0:00:07]}  Bg3+ {[%clk 0:00:05]} 58. Kg1 {[%clk 0:00:06]}  Rd8 {[%clk 0:00:04]} 59. Bxg3 {[%clk 0:00:04]}  fxg3 {[%clk 0:00:05]} 60. Kf1 {[%clk 0:00:05]}  Rd1+ {[%clk 0:00:05]} 61. Ke2 {[%clk 0:00:05]}  Rg1 {[%clk 0:00:06]} 62. Kd3 {[%clk 0:00:06]}  Nd4 {[%clk 0:00:05]} 63. Rc5 {[%clk 0:00:04]}  Rd1+ {[%clk 0:00:05]} 64. Kc4 {[%clk 0:00:05]}  Rc1+ {[%clk 0:00:05]} 65. Kd5 {[%clk 0:00:05]}  Rd1 {[%clk 0:00:05]} 66. b6 {[%clk 0:00:06]}  Nb3+ {[%clk 0:00:05]} 67. Kc6 {[%clk 0:00:06]}  Nxc5 {[%clk 0:00:05]} 68. Kxc5 {[%clk 0:00:06]}  Rb1 {[%clk 0:00:06]} 69. Kc6 {[%clk 0:00:06]}  Kf4 {[%clk 0:00:05]} 70. Rxa5 {[%clk 0:00:05]}  Rb2 {[%clk 0:00:04]} 71. b7 {[%clk 0:00:05]}  e4 {[%clk 0:00:03]} 72. fxe4 {[%clk 0:00:05]}  Ke3 {[%clk 0:00:02]} 73. Rb5 {[%clk 0:00:05]}  Rc2+ {[%clk 0:00:02]} 74. Kd5 {[%clk 0:00:04]}  Rd2+ {[%clk 0:00:03]} 75. Ke5 {[%clk 0:00:04]}  Rxg2 {[%clk 0:00:04]} 76. b8=Q {[%clk 0:00:04]}  Rd2 {[%clk 0:00:04]} 77. Rb3+ {[%clk 0:00:04]}  Kf2 {[%clk 0:00:05]} 78. Qb6+ {[%clk 0:00:04]}  Kf1 {[%clk 0:00:06]} 79. Rxg3 {[%clk 0:00:04]}  Rf2 {[%clk 0:00:07]} 80. Qb1+ {[%clk 0:00:03]}  Ke2 {[%clk 0:00:07]} 81. Qd3+ {[%clk 0:00:03]}  Ke1 {[%clk 0:00:07]} 82. Rg1+ {[%clk 0:00:04]}  Rf1 {[%clk 0:00:08]} 83. Rxf1# {[%clk 0:00:04]} 1-0


[Site "https://www.chess.com"]

[Event "Titled Tuesday Blitz May 16 Early 2023"]
[White "Tari, Aryan"]
[Black "Isajevsky, Anton"]
[WhiteFideId "1510045"]
[BlackFideId "4142500"]
[WhiteElo "2571"]
[BlackElo "2510"]
[Result "1-0"]
[Round "02"]
[TimeControl "180+2"]
[Date "2023.05.16"]
[WhiteClock "0:01:14"]
[BlackClock "0:00:00"]

1. e4 {[%clk 0:02:49]}  e6 {[%clk 0:02:58]} 2. d4 {[%clk 0:02:49]}  d5 {[%clk 0:02:58]} 3. Nd2 {[%clk 0:02:49]}  dxe4 {[%clk 0:02:58]} 4. Nxe4 {[%clk 0:02:49]}  Bd7 {[%clk 0:02:58]} 5. Ng5 {[%clk 0:02:35]}  h6 {[%clk 0:02:19]} 6. N5f3 {[%clk 0:02:35]}  c5 {[%clk 0:02:09]} 7. Nd2 {[%clk 0:02:29]}  cxd4 {[%clk 0:02:02]} 8. Ndf3 {[%clk 0:02:29]}  Nc6 {[%clk 0:01:56]} 9. Nxd4 {[%clk 0:02:28]}  Nxd4 {[%clk 0:01:15]} 10. Qxd4 {[%clk 0:02:29]}  Bc6 {[%clk 0:01:13]} 11. Be3 {[%clk 0:02:29]}  Qxd4 {[%clk 0:01:11]} 12. Bxd4 {[%clk 0:02:30]}  Ne7 {[%clk 0:01:09]} 13. O-O-O {[%clk 0:02:14]}  Nf5 {[%clk 0:01:06]} 14. Bc3 {[%clk 0:02:15]}  Bc5 {[%clk 0:01:05]} 15. Nh3 {[%clk 0:02:15]}  Ke7 {[%clk 0:00:55]} 16. Rg1 {[%clk 0:02:04]}  Rhd8 {[%clk 0:00:50]} 17. Bd3 {[%clk 0:02:04]}  Bd4 {[%clk 0:00:31]} 18. Bxf5 {[%clk 0:01:40]}  Bxc3 {[%clk 0:00:31]} 19. bxc3 {[%clk 0:01:41]}  exf5 {[%clk 0:00:28]} 20. f3 {[%clk 0:01:37]}  g5 {[%clk 0:00:27]} 21. Nf2 {[%clk 0:01:37]}  Kf6 {[%clk 0:00:23]} 22. Nd3 {[%clk 0:01:35]}  f4 {[%clk 0:00:20]} 23. Nb4 {[%clk 0:01:35]}  Kf5 {[%clk 0:00:15]} 24. Rd4 {[%clk 0:01:33]}  Re8 {[%clk 0:00:08]} 25. Rgd1 {[%clk 0:01:28]}  Re2 {[%clk 0:00:07]} 26. R1d2 {[%clk 0:01:28]}  Rae8 {[%clk 0:00:06]} 27. Rc4 {[%clk 0:01:22]}  Rxd2 {[%clk 0:00:04]} 28. Kxd2 {[%clk 0:01:23]}  Re6 {[%clk 0:00:04]} 29. Rc5+ {[%clk 0:01:22]}  Kg6 {[%clk 0:00:04]} 30. Nd3 {[%clk 0:01:20]}  f6 {[%clk 0:00:02]} 31. Ra5 {[%clk 0:01:18]}  a6 {[%clk 0:00:01]} 32. c4 {[%clk 0:01:19]}  h5 {[%clk 0:00:01]} 33. h3 {[%clk 0:01:18]}  Kf7 {[%clk 0:00:00]} 34. h4 {[%clk 0:01:14]} 1-0


[Site "https://www.chess.com"]

[Event "Titled Tuesday Blitz May 16 Early 2023"]
[White "Shimanov, Aleksandr"]
[Black "Potkin, Vladimir"]
[WhiteFideId "4198603"]
[BlackFideId "4131061"]
[WhiteElo "2631"]
[BlackElo "2474"]
[Result "1-0"]
[Round "02"]
[TimeControl "180+2"]
[Date "2023.05.16"]
[WhiteClock "0:01:05"]
[BlackClock "0:00:05"]

1. e4 {[%clk 0:03:00]}  c5 {[%clk 0:02:58]} 2. d4 {[%clk 0:03:00]}  cxd4 {[%clk 0:02:57]} 3. Qxd4 {[%clk 0:03:01]}  Nc6 {[%clk 0:02:56]} 4. Qd3 {[%clk 0:03:01]}  Nf6 {[%clk 0:02:56]} 5. Nc3 {[%clk 0:03:00]}  g6 {[%clk 0:02:49]} 6. Nf3 {[%clk 0:02:59]}  d6 {[%clk 0:02:47]} 7. Be2 {[%clk 0:02:59]}  Bg7 {[%clk 0:02:47]} 8. O-O {[%clk 0:02:55]}  O-O {[%clk 0:02:48]} 9. Nd5 {[%clk 0:02:55]}  Be6 {[%clk 0:02:35]} 10. c3 {[%clk 0:02:53]}  Nd7 {[%clk 0:02:27]} 11. Bg5 {[%clk 0:02:51]}  Re8 {[%clk 0:02:25]} 12. Rad1 {[%clk 0:02:49]}  Rc8 {[%clk 0:02:15]} 13. Qe3 {[%clk 0:02:39]}  Qa5 {[%clk 0:02:10]} 14. a3 {[%clk 0:02:36]}  Bxd5 {[%clk 0:01:53]} 15. exd5 {[%clk 0:02:25]}  Nce5 {[%clk 0:01:53]} 16. Nxe5 {[%clk 0:02:21]}  Nxe5 {[%clk 0:01:54]} 17. Qe4 {[%clk 0:02:19]}  b5 {[%clk 0:01:46]} 18. h4 {[%clk 0:02:17]}  Qb6 {[%clk 0:01:43]} 19. h5 {[%clk 0:02:12]}  a5 {[%clk 0:01:42]} 20. g3 {[%clk 0:01:59]}  Rb8 {[%clk 0:01:22]} 21. Kg2 {[%clk 0:01:57]}  b4 {[%clk 0:01:23]} 22. cxb4 {[%clk 0:01:57]}  axb4 {[%clk 0:01:23]} 23. a4 {[%clk 0:01:58]}  b3 {[%clk 0:01:00]} 24. Bb5 {[%clk 0:01:56]}  Rec8 {[%clk 0:01:01]} 25. Bxe7 {[%clk 0:01:48]}  Rc2 {[%clk 0:01:00]} 26. Rb1 {[%clk 0:01:33]}  f5 {[%clk 0:00:39]} 27. Qe1 {[%clk 0:01:32]}  Ng4 {[%clk 0:00:16]} 28. hxg6 {[%clk 0:01:12]}  hxg6 {[%clk 0:00:17]} 29. Qe6+ {[%clk 0:01:08]}  Kh7 {[%clk 0:00:17]} 30. Rh1+ {[%clk 0:01:07]}  Nh6 {[%clk 0:00:14]} 31. Rxh6+ {[%clk 0:01:07]}  Bxh6 {[%clk 0:00:05]} 32. Qf7+ {[%clk 0:01:05]} 1-0


[Site "https://www.chess.com"]

[Event "Titled Tuesday Blitz May 16 Early 2023"]
[White "Pichot, Alan"]
[Black "Jaskolka, Tomasz"]
[WhiteFideId "110973"]
[BlackFideId "1170791"]
[WhiteElo "2573"]
[BlackElo "2155"]
[Result "1-0"]
[Round "02"]
[TimeControl "180+2"]
[Date "2023.05.16"]
[WhiteClock "0:00:29"]
[BlackClock "0:00:09"]

1. e4 {[%clk 0:03:00]}  d5 {[%clk 0:03:00]} 2. exd5 {[%clk 0:02:58]}  Nf6 {[%clk 0:03:00]} 3. Nf3 {[%clk 0:02:55]}  Bg4 {[%clk 0:02:56]} 4. h3 {[%clk 0:02:51]}  Bxf3 {[%clk 0:02:56]} 5. Qxf3 {[%clk 0:02:48]}  Qxd5 {[%clk 0:02:57]} 6. Be2 {[%clk 0:02:43]}  Nc6 {[%clk 0:02:54]} 7. c3 {[%clk 0:02:42]}  Ne5 {[%clk 0:02:49]} 8. Qxd5 {[%clk 0:02:41]}  Nxd5 {[%clk 0:02:50]} 9. d4 {[%clk 0:02:41]}  Ng6 {[%clk 0:02:50]} 10. O-O {[%clk 0:02:37]}  e6 {[%clk 0:02:49]} 11. Nd2 {[%clk 0:02:35]}  Be7 {[%clk 0:02:34]} 12. g3 {[%clk 0:02:31]}  O-O-O {[%clk 0:02:33]} 13. h4 {[%clk 0:02:29]}  Bf6 {[%clk 0:02:08]} 14. Ne4 {[%clk 0:02:27]}  Be7 {[%clk 0:02:01]} 15. Bf3 {[%clk 0:02:14]}  c6 {[%clk 0:02:00]} 16. Re1 {[%clk 0:02:12]}  h6 {[%clk 0:01:47]} 17. a4 {[%clk 0:02:08]}  Nf8 {[%clk 0:01:45]} 18. a5 {[%clk 0:02:05]}  a6 {[%clk 0:01:45]} 19. Nd2 {[%clk 0:02:03]}  g5 {[%clk 0:01:40]} 20. h5 {[%clk 0:01:51]}  Nf6 {[%clk 0:01:28]} 21. Nc4 {[%clk 0:01:51]}  N8d7 {[%clk 0:01:20]} 22. Kg2 {[%clk 0:01:42]}  g4 {[%clk 0:01:19]} 23. Be2 {[%clk 0:01:42]}  Nxh5 {[%clk 0:01:20]} 24. Bxg4 {[%clk 0:01:41]}  Nhf6 {[%clk 0:01:20]} 25. Bf3 {[%clk 0:01:41]}  h5 {[%clk 0:01:21]} 26. Bg5 {[%clk 0:01:36]}  Rdg8 {[%clk 0:01:17]} 27. Bh4 {[%clk 0:01:34]}  Nd5 {[%clk 0:01:11]} 28. Bxe7 {[%clk 0:01:34]}  Nxe7 {[%clk 0:01:04]} 29. Nd6+ {[%clk 0:01:35]}  Kc7 {[%clk 0:01:03]} 30. Nxf7 {[%clk 0:01:35]}  Rh7 {[%clk 0:01:03]} 31. Ne5 {[%clk 0:01:35]}  h4 {[%clk 0:01:01]} 32. Nxd7 {[%clk 0:01:19]}  Kxd7 {[%clk 0:01:00]} 33. Rh1 {[%clk 0:01:19]}  Nf5 {[%clk 0:00:46]} 34. Be4 {[%clk 0:01:09]}  Rgh8 {[%clk 0:00:26]} 35. Rae1 {[%clk 0:01:00]}  hxg3 {[%clk 0:00:24]} 36. Rxh7+ {[%clk 0:00:59]}  Rxh7 {[%clk 0:00:24]} 37. fxg3 {[%clk 0:01:00]}  Rg7 {[%clk 0:00:23]} 38. Bxf5 {[%clk 0:00:58]}  exf5 {[%clk 0:00:24]} 39. Kf3 {[%clk 0:00:58]}  Kd6 {[%clk 0:00:22]} 40. Re5 {[%clk 0:00:53]}  Rg5 {[%clk 0:00:21]} 41. Kf4 {[%clk 0:00:48]}  Rg4+ {[%clk 0:00:21]} 42. Kf3 {[%clk 0:00:49]}  Rg5 {[%clk 0:00:22]} 43. Re8 {[%clk 0:00:49]}  Rh5 {[%clk 0:00:21]} 44. Re3 {[%clk 0:00:29]}  Rh2 {[%clk 0:00:20]} 45. b4 {[%clk 0:00:29]}  Kd5 {[%clk 0:00:18]} 46. Kf4 {[%clk 0:00:28]}  Rh5 {[%clk 0:00:15]} 47. Re5+ {[%clk 0:00:26]}  Kc4 {[%clk 0:00:16]} 48. Rxf5 {[%clk 0:00:26]}  Rh1 {[%clk 0:00:10]} 49. Rc5+ {[%clk 0:00:26]}  Kd3 {[%clk 0:00:11]} 50. g4 {[%clk 0:00:27]}  Rf1+ {[%clk 0:00:11]} 51. Ke5 {[%clk 0:00:25]}  Rg1 {[%clk 0:00:11]} 52. Kf5 {[%clk 0:00:26]}  Rf1+ {[%clk 0:00:11]} 53. Kg6 {[%clk 0:00:26]}  Ke4 {[%clk 0:00:12]} 54. g5 {[%clk 0:00:27]}  Rf4 {[%clk 0:00:11]} 55. Kg7 {[%clk 0:00:27]}  Kd3 {[%clk 0:00:08]} 56. g6 {[%clk 0:00:27]}  Rg4 {[%clk 0:00:08]} 57. Kf7 {[%clk 0:00:27]}  Rf4+ {[%clk 0:00:08]} 58. Kg8 {[%clk 0:00:28]}  Rg4 {[%clk 0:00:09]} 59. g7 {[%clk 0:00:28]}  Kc2 {[%clk 0:00:09]} 60. Kf7 {[%clk 0:00:28]}  Rf4+ {[%clk 0:00:10]} 61. Kg6 {[%clk 0:00:29]}  Rg4+ {[%clk 0:00:09]} 62. Rg5 {[%clk 0:00:29]} 1-0


[Site "https://www.chess.com"]

[Event "Titled Tuesday Blitz May 16 Early 2023"]
[White "Seinw1"]
[Black "Hafiz, Arif Abdul"]
[BlackFideId "7104227"]
[WhiteElo "2569"]
[BlackElo "2198"]
[Result "0-1"]
[Round "02"]
[TimeControl "180+2"]
[Date "2023.05.16"]
[WhiteClock "0:00:14"]
[BlackClock "0:00:14"]

1. c4 {[%clk 0:03:00]}  e5 {[%clk 0:02:58]} 2. Nc3 {[%clk 0:03:01]}  Nc6 {[%clk 0:02:58]} 3. g3 {[%clk 0:03:01]}  Nf6 {[%clk 0:02:56]} 4. Bg2 {[%clk 0:03:02]}  Bb4 {[%clk 0:02:56]} 5. e4 {[%clk 0:02:55]}  Bxc3 {[%clk 0:02:54]} 6. dxc3 {[%clk 0:02:47]}  O-O {[%clk 0:02:55]} 7. Qe2 {[%clk 0:02:46]}  d6 {[%clk 0:02:53]} 8. Nf3 {[%clk 0:02:45]}  h6 {[%clk 0:02:52]} 9. Nd2 {[%clk 0:02:45]}  Be6 {[%clk 0:02:52]} 10. Nf1 {[%clk 0:02:45]}  a6 {[%clk 0:02:50]} 11. Ne3 {[%clk 0:02:45]}  Nd7 {[%clk 0:02:27]} 12. O-O {[%clk 0:02:43]}  Nc5 {[%clk 0:02:22]} 13. b4 {[%clk 0:02:30]}  Nd7 {[%clk 0:02:09]} 14. f4 {[%clk 0:02:22]}  f6 {[%clk 0:02:08]} 15. f5 {[%clk 0:02:20]}  Bf7 {[%clk 0:02:08]} 16. a4 {[%clk 0:02:13]}  a5 {[%clk 0:02:03]} 17. Nd5 {[%clk 0:01:51]}  axb4 {[%clk 0:02:02]} 18. cxb4 {[%clk 0:01:48]}  Nd4 {[%clk 0:01:56]} 19. Qd3 {[%clk 0:01:39]}  c6 {[%clk 0:01:51]} 20. Ne3 {[%clk 0:01:35]}  b5 {[%clk 0:01:34]} 21. cxb5 {[%clk 0:01:26]}  cxb5 {[%clk 0:01:32]} 22. Bb2 {[%clk 0:01:13]}  bxa4 {[%clk 0:01:30]} 23. Bxd4 {[%clk 0:01:08]}  exd4 {[%clk 0:01:31]} 24. Qxd4 {[%clk 0:01:09]}  Ne5 {[%clk 0:01:30]} 25. Rfd1 {[%clk 0:01:00]}  a3 {[%clk 0:01:25]} 26. Qxd6 {[%clk 0:00:54]}  Qxd6 {[%clk 0:01:26]} 27. Rxd6 {[%clk 0:00:55]}  Rfb8 {[%clk 0:01:27]} 28. Nd5 {[%clk 0:00:39]}  Bxd5 {[%clk 0:00:59]} 29. exd5 {[%clk 0:00:39]}  Rxb4 {[%clk 0:00:55]} 30. Rc6 {[%clk 0:00:17]}  Nxc6 {[%clk 0:00:49]} 31. dxc6 {[%clk 0:00:18]}  Kf8 {[%clk 0:00:36]} 32. c7 {[%clk 0:00:17]}  Rc8 {[%clk 0:00:36]} 33. Rxa3 {[%clk 0:00:17]}  Rb1+ {[%clk 0:00:36]} 34. Kf2 {[%clk 0:00:17]}  Rb2+ {[%clk 0:00:36]} 35. Kf3 {[%clk 0:00:15]}  Rxc7 {[%clk 0:00:36]} 36. Bf1 {[%clk 0:00:13]}  Rxh2 {[%clk 0:00:33]} 37. Ra8+ {[%clk 0:00:12]}  Ke7 {[%clk 0:00:33]} 38. Bb5 {[%clk 0:00:13]}  Rb2 {[%clk 0:00:32]} 39. Ba4 {[%clk 0:00:11]}  Rc3+ {[%clk 0:00:28]} 40. Kg4 {[%clk 0:00:10]}  Rg2 {[%clk 0:00:27]} 41. Ra7+ {[%clk 0:00:08]}  Kf8 {[%clk 0:00:20]} 42. Ra8+ {[%clk 0:00:08]}  Kf7 {[%clk 0:00:20]} 43. Ra7+ {[%clk 0:00:08]}  Kg8 {[%clk 0:00:20]} 44. Ra8+ {[%clk 0:00:06]}  Kh7 {[%clk 0:00:19]} 45. Be8 {[%clk 0:00:07]}  Rgxg3+ {[%clk 0:00:18]} 46. Kf4 {[%clk 0:00:07]}  Rcf3+ {[%clk 0:00:15]} 47. Ke4 {[%clk 0:00:07]}  Re3+ {[%clk 0:00:16]} 48. Kf4 {[%clk 0:00:08]}  Rxe8 {[%clk 0:00:16]} 49. Rxe8 {[%clk 0:00:07]}  Rg5 {[%clk 0:00:16]} 50. Re7 {[%clk 0:00:08]}  h5 {[%clk 0:00:16]} 51. Re3 {[%clk 0:00:08]}  Rg4+ {[%clk 0:00:16]} 52. Kf3 {[%clk 0:00:09]}  Kh6 {[%clk 0:00:16]} 53. Re7 {[%clk 0:00:09]}  Rb4 {[%clk 0:00:15]} 54. Rf7 {[%clk 0:00:09]}  h4 {[%clk 0:00:15]} 55. Rf8 {[%clk 0:00:09]}  Kg5 {[%clk 0:00:14]} 56. Rg8 {[%clk 0:00:10]}  Rb7 {[%clk 0:00:14]} 57. Rh8 {[%clk 0:00:10]}  Kxf5 {[%clk 0:00:14]} 58. Rxh4 {[%clk 0:00:10]}  Rb3+ {[%clk 0:00:15]} 59. Kg2 {[%clk 0:00:11]}  g5 {[%clk 0:00:16]} 60. Rc4 {[%clk 0:00:11]}  Kg6 {[%clk 0:00:15]} 61. Rc5 {[%clk 0:00:11]}  f5 {[%clk 0:00:15]} 62. Rc6+ {[%clk 0:00:11]}  Kh5 {[%clk 0:00:16]} 63. Rc8 {[%clk 0:00:12]}  Kg4 {[%clk 0:00:16]} 64. Rc4+ {[%clk 0:00:13]}  f4 {[%clk 0:00:16]} 65. Rc2 {[%clk 0:00:13]}  Rg3+ {[%clk 0:00:16]} 66. Kf2 {[%clk 0:00:14]}  Rh3 {[%clk 0:00:16]} 67. Kg2 {[%clk 0:00:14]}  f3+ {[%clk 0:00:17]} 68. Kg1 {[%clk 0:00:15]}  Kg3 {[%clk 0:00:16]} 69. Rg2+ {[%clk 0:00:13]}  Kf4 {[%clk 0:00:16]} 70. Rd2 {[%clk 0:00:13]}  Rh6 {[%clk 0:00:16]} 71. Rd4+ {[%clk 0:00:13]}  Kg3 {[%clk 0:00:15]} 72. Rd3 {[%clk 0:00:13]}  Rb6 {[%clk 0:00:14]} 73. Rd1 {[%clk 0:00:13]}  g4 {[%clk 0:00:14]} 74. Re1 {[%clk 0:00:12]}  f2+ {[%clk 0:00:14]} 75. Kf1 {[%clk 0:00:13]}  fxe1=Q+ {[%clk 0:00:15]} 76. Kxe1 {[%clk 0:00:14]}  Kf3 {[%clk 0:00:14]} 0-1


[Site "https://www.chess.com"]